fUST/lending_fUST_20260316
["ID","MTS","AMOUNT","RATE_DAILY","PERIOD"]
[408417283,1773590402451,156.12,2e-05,2]
[408417284,1773590402674,156.12,2e-05,2]
[408417285,1773590402953,156.12,2e-05,2]
[408417286,1773590403497,156.12,2e-05,2]
[408417287,1773590403532,156.12,2e-05,2]
[408417288,1773590403773,156.12,2e-05,2]
[408417289,1773590424471,-156.12,2.1e-05,2]
[408417290,1773590424502,-156.12,2.1e-05,2]
[408417291,1773590424533,-156.12,2.1e-05,2]
[408417292,1773590424564,-156.12,2.1e-05,2]
[408417293,1773590424592,-156.12,2.1e-05,2]
[408417294,1773590424621,-156.12,2.1e-05,2]
[408417295,1773590424650,-156.12,2.1e-05,2]
[408417296,1773590424679,-156.12,2.1e-05,2]
[408417297,1773590424708,-156.12,2.1e-05,2]
[408417298,1773590424738,-156.12,2.1e-05,2]
[408417299,1773590424765,-156.12,2.1e-05,2]
[408417300,1773590424793,-156.12,2.1e-05,2]
[408417301,1773590424821,-156.12,2.2e-05,2]
[408417302,1773590424854,-156.12,2.2e-05,2]
[408417303,1773590424881,-156.12,2.2e-05,2]
[408417304,1773590424909,-156.12,2.2e-05,2]
[408417305,1773590424936,-156.12,2.2e-05,2]
[408417306,1773590424965,-156.12,2.2e-05,2]
[408417307,1773590425002,-500.0,2.413e-05,2]
[408417308,1773590425643,-1434.33798742,2.854e-05,2]
[408417309,1773590453761,-3310.16,2.797e-05,2]
[408417324,1773591002551,259.07,2e-05,2]
[408417449,1773591038424,-5000.0,2.555e-05,2]
[408417450,1773591038434,-5000.0,2.581e-05,2]
[408417451,1773591038444,-5000.0,2.607e-05,2]
[408417452,1773591038454,-1200.0,2.632e-05,2]
[408417453,1773591038464,-300.0,2.657e-05,2]
[408417454,1773591038473,-254.27980979,2.854e-05,2]
[408417455,1773591038484,-420.0,2.923e-05,2]
[408417456,1773591038494,-300.0,2.94e-05,2]
[408417457,1773591038505,-300.0,2.94e-05,2]
[408417458,1773591038515,-300.0,2.94e-05,2]
[408417459,1773591038524,-300.0,2.94e-05,2]
[408417460,1773591038534,-300.0,2.94e-05,2]
[408417461,1773591038544,-300.0,2.94e-05,2]
[408417462,1773591038555,-300.0,2.94e-05,2]
[408417463,1773591038565,-300.0,2.94e-05,2]
[408417464,1773591038575,-300.0,2.94e-05,2]
[408417465,1773591038586,-300.0,2.94e-05,2]
[408417466,1773591038596,-300.0,2.94e-05,2]
[408417467,1773591038606,-300.0,2.94e-05,2]
[408417468,1773591038616,-300.0,2.94e-05,2]
[408417469,1773591038626,-300.0,2.94e-05,2]
[408417470,1773591038635,-300.0,2.94e-05,2]
[408417471,1773591038645,-179.49733756,2.94e-05,2]
[408417472,1773591038655,-500.0,2.94e-05,2]
[408417473,1773591038665,-500.0,2.94e-05,2]
[408417474,1773591038675,-500.0,2.97e-05,2]
[408417475,1773591038684,-500.0,2.97e-05,2]
[408417476,1773591038695,-166.86234,2.97e-05,2]
[408417477,1773591038704,-600.0,2.998e-05,2]
[408417478,1773591038714,-500.0,3.093e-05,2]
[408417479,1773591038724,-500.0,3.168e-05,2]
[408417480,1773591038734,-587.0,3.215e-05,2]
[408417481,1773591038745,-720.0,3.298e-05,2]
[408417482,1773591038754,-500.0,3.488e-05,2]
[408417483,1773591038764,-1000.0,3.488e-05,2]
[408417484,1773591038774,-1000.0,3.518e-05,2]
[408417485,1773591038784,-645.26677799,3.518e-05,2]
[408417486,1773591038794,-823.0,3.536e-05,2]
[408417487,1773591038804,-864.0,3.627e-05,2]
[408417488,1773591038814,-1000.0,3.64e-05,2]
[408417489,1773591038823,-1000.0,3.715e-05,2]
[408417490,1773591038833,-1152.0,3.89e-05,2]
[408417491,1773591038843,-1000.0,3.99e-05,2]
[408417492,1773591038853,-500.0,4.036e-05,2]
[408417493,1773591038863,-1610.17366839,4.066e-05,2]
[408417494,1773591038873,-1500.0,4.188e-05,2]
[408417495,1773591038883,-1500.0,4.263e-05,2]
[408417496,1773591038893,-1613.0,4.279e-05,2]
[408417497,1773591038903,-1000.0,4.389e-05,2]
[408417498,1773591038916,-244.0,4.389e-05,2]
[408417499,1773591038926,-2258.0,4.707e-05,2]
[408417500,1773591038936,-2000.0,4.811e-05,2]
[408417501,1773591038946,-1000.0,4.828e-05,2]
[408417502,1773591038956,-492.0,4.828e-05,2]
[408417503,1773591038966,-3130.0,5.178e-05,2]
[408417504,1773591038976,-1000.0,5.311e-05,2]
[408417505,1773591038986,-791.0,5.311e-05,2]
[408417506,1773591038996,-2500.0,5.359e-05,2]
[408417507,1773591039006,-1000.0,5.842e-05,2]
[408417508,1773591039016,-1000.0,5.842e-05,2]
[408417509,1773591039026,-3000.0,5.907e-05,2]
[408417510,1773591039037,-166.86234,5.941e-05,2]
[408417511,1773591039048,-500.0,6.108e-05,2]
[408417512,1773591039058,-4643.8133048,6.183e-05,2]
[408417513,1773591039068,-500.0,6.418e-05,2]
[408417514,1773591039077,-445.202766,6.418e-05,2]
[408417515,1773591039087,-500.0,6.418e-05,2]
[408417516,1773591039097,-162.380719,6.418e-05,2]
[408417517,1773591039107,-500.0,6.418e-05,2]
[408417518,1773591039118,-151.0,6.418e-05,2]
[408417519,1773591039127,-500.0,6.418e-05,2]
[408417520,1773591039137,-162.380719,6.418e-05,2]
[408417521,1773591039147,-500.0,6.418e-05,2]
[408417522,1773591039159,-500.0,6.418e-05,2]
[408417523,1773591039170,-500.0,6.418e-05,2]
[408417524,1773591039180,-500.0,6.418e-05,2]
[408417525,1773591039189,-500.0,6.418e-05,2]
[408417526,1773591039201,-500.0,6.418e-05,2]
[408417527,1773591039211,-500.0,6.418e-05,2]
[408417528,1773591039220,-500.0,6.418e-05,2]
[408417529,1773591039230,-500.0,6.418e-05,2]
[408417530,1773591039241,-500.0,6.418e-05,2]
[408417531,1773591039251,-156.587,6.418e-05,2]
[408417532,1773591039262,-500.0,6.418e-05,2]
[408417533,1773591039272,-500.0,6.418e-05,2]
[408417534,1773591039282,-500.0,6.418e-05,2]
[408417535,1773591039292,-2150.738,6.418e-05,2]
[408417536,1773591039302,-500.0,6.418e-05,2]
[408417537,1773591039312,-537.6845,6.418e-05,2]
[408417538,1773591039321,-500.0,6.425e-05,2]
[408417539,1773591039331,-500.0,6.425e-05,2]
[408417540,1773591039340,-500.0,6.425e-05,2]
[408417541,1773591039350,-500.0,6.425e-05,2]
[408417542,1773591039359,-500.0,6.425e-05,2]
[408417543,1773591039369,-500.0,6.425e-05,2]
[408417544,1773591039378,-500.0,6.425e-05,2]
[408417545,1773591039388,-1000.0,6.426e-05,2]
[408417546,1773591039397,-1000.0,6.426e-05,2]
[408417547,1773591039406,-579.0,6.426e-05,2]
[408417548,1773591039416,-1600.4245371,6.455e-05,2]
[408417549,1773591039425,-330.664141,6.5e-05,2]
[408417550,1773591039434,-500.50967857,6.519e-05,2]
[408417551,1773591039443,-387.89743048,6.685e-05,2]
[408417552,1773591039454,-387.89743048,6.712e-05,2]
[408417553,1773591039464,-500.0,6.749e-05,2]
[408417554,1773591039474,-387.89743048,6.767e-05,2]
[408417555,1773591039485,-330.664141,6.774e-05,2]
[408417556,1773591039495,-387.89743048,6.795e-05,2]
[408417557,1773591039505,-387.89743048,6.822e-05,2]
[408417558,1773591039516,-387.89743048,6.849e-05,2]
[408417559,1773591039526,-387.89743048,6.877e-05,2]
[408417560,1773591039535,-296.13788793,6.893e-05,2]
[408417561,1773591039544,-2367.96181132,6.898e-05,4]
[408417562,1773591039555,-180.06891924,6.912e-05,2]
[408417563,1773591039564,-387.73665829,6.912e-05,2]
[408417564,1773591039573,-194.53,6.923e-05,2]
[408417565,1773591039583,-284.44058263,6.924e-05,2]
[408417566,1773591039592,-500.0,6.924e-05,2]
[408417567,1773591039604,-500.0,6.924e-05,2]
[408417568,1773591039614,-500.0,6.924e-05,2]
[408417569,1773591039624,-500.0,6.924e-05,2]
[408417570,1773591039633,-500.0,6.924e-05,2]
[408417571,1773591039643,-500.0,6.924e-05,2]
[408417572,1773591039652,-500.0,6.924e-05,2]
[408417573,1773591039662,-500.0,6.924e-05,2]
[408417574,1773591039671,-500.0,6.924e-05,2]
[408417575,1773591039680,-500.0,6.924e-05,2]
[408417576,1773591039691,-500.0,6.924e-05,2]
[408417577,1773591039703,-500.0,6.924e-05,2]
[408417578,1773591039713,-500.0,6.924e-05,2]
[408417579,1773591039723,-500.0,6.924e-05,2]
[408417580,1773591039734,-500.0,6.924e-05,2]
[408417581,1773591039743,-500.0,6.924e-05,2]
[408417582,1773591039753,-500.0,6.924e-05,2]
[408417583,1773591039762,-500.0,6.924e-05,2]
[408417584,1773591039772,-500.0,6.924e-05,2]
[408417585,1773591039782,-500.0,6.924e-05,2]
[408417586,1773591039792,-500.0,6.924e-05,2]
[408417587,1773591039801,-500.0,6.924e-05,2]
[408417588,1773591039811,-500.0,6.924e-05,2]
[408417589,1773591039820,-500.0,6.924e-05,2]
[408417590,1773591039829,-500.0,6.924e-05,2]
[408417591,1773591039840,-500.0,6.924e-05,2]
[408417592,1773591039849,-500.0,6.924e-05,2]
[408417593,1773591039859,-500.0,6.924e-05,2]
[408417594,1773591039869,-500.0,6.924e-05,2]
[408417595,1773591039879,-500.0,6.924e-05,2]
[408417596,1773591039889,-13.41435748,6.924e-05,2]
[408417597,1773591039922,-486.58564252,6.924e-05,2]
[408417598,1773591039931,-500.0,6.924e-05,2]
[408417599,1773591039941,-500.0,6.924e-05,2]
[408417600,1773591039950,-500.0,6.924e-05,2]
[408417601,1773591039960,-500.0,6.924e-05,2]
[408417602,1773591039970,-500.0,6.924e-05,2]
[408417603,1773591039979,-388.18785761,6.924e-05,2]
[408417622,1773591040878,-111.81214239,6.924e-05,2]
[408417624,1773591040887,-191.803312,6.924e-05,2]
[408417667,1773591043419,-308.196688,6.924e-05,2]
[408417668,1773591043428,-500.0,6.924e-05,2]
[408417670,1773591043438,-500.0,6.924e-05,2]
[408417672,1773591043447,-500.0,6.924e-05,2]
[408417674,1773591043473,-175.56963014,6.924e-05,2]
[408417675,1773591043489,-324.43036986,6.924e-05,2]
[408417676,1773591043499,-500.0,6.924e-05,2]
[408417677,1773591043509,-500.0,6.924e-05,2]
[408417678,1773591043519,-500.0,6.924e-05,2]
[408417679,1773591043530,-500.0,6.924e-05,2]
[408417680,1773591043540,-500.0,6.924e-05,2]
[408417681,1773591043550,-500.0,6.924e-05,2]
[408417682,1773591043559,-500.0,6.924e-05,2]
[408417683,1773591043569,-500.0,6.924e-05,2]
[408417684,1773591043579,-500.0,6.924e-05,2]
[408417685,1773591043590,-500.0,6.924e-05,2]
[408417686,1773591043600,-288.85,6.924e-05,2]
[408417687,1773591043610,-500.0,6.924e-05,2]
[408417688,1773591043620,-500.0,6.924e-05,2]
[408417689,1773591043630,-513.71,6.924e-05,2]
[408417690,1773591043640,-500.0,6.924e-05,2]
[408417691,1773591043650,-500.0,6.924e-05,2]
[408417692,1773591043660,-500.0,6.924e-05,2]
[408417695,1773591043670,-500.0,6.924e-05,2]
[408417697,1773591043680,-500.0,6.924e-05,2]
[408417698,1773591043690,-500.0,6.924e-05,2]
[408417699,1773591043700,-500.0,6.924e-05,2]
[408417700,1773591043709,-500.0,6.924e-05,2]
[408417701,1773591043719,-3033.42758173,6.929e-05,4]
[408417702,1773591043729,-387.89743048,6.932e-05,2]
[408417703,1773591043739,-4643.8133048,6.932e-05,2]
[408417704,1773591043749,-387.89743048,6.959e-05,2]
[408417705,1773591043759,-462.71544989,6.962e-05,2]
[408417706,1773591043769,-461.67526834,6.966e-05,2]
[408417707,1773591043780,-151.0,6.966e-05,2]
[408417708,1773591043789,-162.68597236,6.966e-05,2]
[408417709,1773591043799,-2230.315306,6.966e-05,2]
[408417710,1773591043809,-557.5788265,6.966e-05,2]
[408417711,1773591043819,-1000.0,6.973e-05,2]
[408417712,1773591043830,-1000.0,6.973e-05,2]
[408417713,1773591043839,-1000.0,6.973e-05,2]
[408417714,1773591043849,-1000.0,6.973e-05,2]
[408417715,1773591043859,-1000.0,6.973e-05,2]
[408417716,1773591043870,-782.40063966,6.973e-05,2]
[408417717,1773591043880,-387.89743048,6.986e-05,2]
[408417718,1773591043890,-665.64393759,7.008e-05,2]
[408417719,1773591043900,-387.89743048,7.014e-05,2]
[408417720,1773591043910,-2185.0,7.034e-05,2]
[408417721,1773591043920,-1412.253,7.034e-05,2]
[408417722,1773591043930,-640.0,7.034e-05,2]
[408417723,1773591043939,-734.0,7.034e-05,2]
[408417724,1773591043949,-183.0,7.034e-05,2]
[408417725,1773591043959,-387.89743048,7.041e-05,2]
[408417726,1773591043969,-330.664141,7.048e-05,2]
[408417727,1773591043983,-496.37858273,7.051e-05,2]
[408417728,1773591043993,-893.48144892,7.051e-05,2]
[408417729,1773591044003,-1588.41146474,7.051e-05,2]
[408417730,1773591044013,-2481.89291366,7.051e-05,2]
[408417731,1773591044023,-388.82528225,7.051e-05,2]
[408417732,1773591044033,-699.88550806,7.051e-05,2]
[408417733,1773591044043,-3570.35186988,7.061e-05,2]
[408417734,1773591044054,-339.60918519,7.065e-05,2]
[408417735,1773591044063,-1000.0,7.069e-05,2]
[408417736,1773591044073,-1000.0,7.069e-05,2]
[408417737,1773591044083,-1000.0,7.069e-05,2]
[408417738,1773591044093,-196.19802044,7.076e-05,4]
[408417739,1773591044103,-151.14774117,7.103e-05,2]
[408417740,1773591044113,-758.35689543,7.104e-05,4]
[408417741,1773591044124,-271.79386817,7.111e-05,2]
[408417742,1773591044134,-259.12065194,7.154e-05,2]
[408417743,1773591044143,-690.0,7.255e-05,2]
[408417744,1773591044153,-322.94870185,7.313e-05,2]
[408417745,1773591044166,-307.74528456,7.321e-05,2]
[408417765,1773591046373,-1743.90730637,6.855e-05,2]
[408417766,1773591046417,-23.44386321,6.855e-05,2]
[408417767,1773591046427,-22.91885644,7.321e-05,2]
[408417768,1773591046436,-160.0,7.377e-05,2]
[408417769,1773591046446,-293.561586,7.377e-05,2]
[408417770,1773591046455,-427.123173,7.377e-05,2]
[408417771,1773591046464,-560.68476,7.377e-05,2]
[408417772,1773591046474,-55.1613157,7.377e-05,2]
[408417776,1773591602364,154.46,2e-05,2]
[408417777,1773591602727,154.46,2e-05,2]
[408417778,1773591603006,154.46,2e-05,2]
[408417779,1773591603284,154.46,2e-05,2]
[408417780,1773591603564,154.46,2e-05,2]
[408417782,1773591818899,4748.0,2.001e-05,2]
[408417783,1773591827104,5000.0,2.001e-05,2]
[408417784,1773591849210,5000.0,2.001e-05,2]
[408417785,1773591872072,5000.0,2.001e-05,2]
[408417786,1773591894658,5000.0,2.001e-05,2]
[408417787,1773591917981,5000.0,2.001e-05,2]
[408417813,1773591951410,-5000.0,2.057e-05,2]
[408417814,1773591951432,-5000.0,2.078e-05,2]
[408417815,1773591963304,-300.0,2.099e-05,2]
[408417816,1773591963327,-154.46,2.1e-05,2]
[408417817,1773591963351,-154.46,2.1e-05,2]
[408417818,1773591963373,-154.46,2.1e-05,2]
[408417819,1773591963394,-154.46,2.1e-05,2]
[408417820,1773591963416,-154.46,2.1e-05,2]
[408417821,1773591963441,-154.46,2.1e-05,2]
[408417822,1773591963464,-154.46,2.1e-05,2]
[408417823,1773591963487,-154.46,2.1e-05,2]
[408417824,1773591963509,-154.46,2.1e-05,2]
[408417825,1773591963536,-154.46,2.1e-05,2]
[408417826,1773591963562,-154.46,2.2e-05,2]
[408417827,1773591963586,-154.46,2.2e-05,2]
[408417828,1773591963609,-154.46,2.2e-05,2]
[408417829,1773591963634,-154.46,2.2e-05,2]
[408417830,1773591963657,-154.46,2.2e-05,2]
[408417831,1773591963680,-154.46,2.2e-05,2]
[408417832,1773591965079,5000.0,6.5e-05,2]
[408417846,1773592202284,152.02,2e-05,2]
[408417847,1773592202643,152.02,2e-05,2]
[408417848,1773592202968,152.02,2e-05,2]
[408417849,1773592203249,152.02,2e-05,2]
[408417851,1773592226335,-152.02,2.1e-05,2]
[408417852,1773592226367,-152.02,2.1e-05,2]
[408417853,1773592226397,-152.02,2.1e-05,2]
[408417854,1773592226426,-152.02,2.1e-05,2]
[408417855,1773592226530,-77.62072354,2.1e-05,2]
[408417856,1773592232317,-74.39927646,2.1e-05,2]
[408417857,1773592232326,-152.02,2.1e-05,2]
[408417858,1773592232336,-500.0,2.15e-05,2]
[408417859,1773592232345,-500.0,2.15e-05,2]
[408417860,1773592232354,-152.02,2.2e-05,2]
[408417861,1773592232364,-152.02,2.2e-05,2]
[408417862,1773592232373,-152.02,2.2e-05,2]
[408417863,1773592232382,-152.02,2.2e-05,2]
[408417864,1773592232392,-1000.0,2.698e-05,2]
[408417865,1773592232402,-1000.0,2.698e-05,2]
[408417867,1773592232411,-1394.24579255,3.246e-05,2]
[408417869,1773592232421,-1500.0,3.246e-05,2]
[408417870,1773592232430,-244.21901305,3.794e-05,2]
[408417872,1773592232439,-5000.0,6.435e-05,2]
[408417874,1773592232449,-1663.06419166,6.5e-05,2]
[408417876,1773592232458,-360.06747459,6.699e-05,2]
[408417879,1773592232469,-376.27411358,6.699e-05,2]
[408417881,1773592232480,-1964.26017726,6.699e-05,2]
[408417883,1773592232489,-161.2398228,6.744e-05,2]
[408417885,1773592232500,-25.4192691,6.744e-05,2]
[408417887,1773592232515,-5708.91453532,6.799e-05,2]
[408417889,1773592232524,-266.98619558,6.899e-05,2]
[408417995,1773592240787,-378.3118428,6.899e-05,2]
[408417996,1773592240850,-3495.8960503,6.899e-05,2]
[408417997,1773592240862,-2215.45575217,6.899e-05,2]
[408417998,1773592240871,-3337.55337915,6.942e-05,2]
[408417999,1773592240912,-884.24564657,6.942e-05,2]
[408418001,1773592241151,-228.78268072,6.942e-05,2]
[408418044,1773592243587,-1625.79918937,6.942e-05,2]
[408418045,1773592243600,-7202.94829625,6.942e-05,2]
[408418046,1773592243612,-2500.01113857,6.942e-05,2]
[408418047,1773592243624,-830.25590851,6.942e-05,2]
[408418048,1773592243636,-512.90534143,6.942e-05,2]
[408418049,1773592243659,-6247.79292384,6.942e-05,2]
[408418050,1773592243670,-24698.48440651,6.942e-05,2]
[408418054,1773592243708,-3569.87324476,6.942e-05,2]
[408418055,1773592243721,-99697.80037665,6.942e-05,2]
[408418081,1773592246598,-15019.16536541,6.942e-05,2]
[408418082,1773592247654,-27375.55389143,6.942e-05,2]
[408418083,1773592247666,-105020.99999979,6.942e-05,2]
[408418085,1773592274385,-608.08,6.872e-05,2]
[408418099,1773592802959,399.09,2e-05,2]
[408418100,1773592803624,399.09,2e-05,2]
[408418101,1773592803659,399.09,2e-05,2]
[408418102,1773592803965,399.09,2e-05,2]
[408418103,1773592804248,399.09,2e-05,2]
[408418104,1773592804647,399.09,2e-05,2]
[408418105,1773592804927,399.09,2e-05,2]
[408418106,1773592805519,399.09,2e-05,2]
[408418108,1773592807386,399.09,2e-05,2]
[408418109,1773592807674,399.09,2e-05,2]
[408418110,1773592807961,399.09,2e-05,2]
[408418111,1773592808264,399.09,2e-05,2]
[408418113,1773592809231,399.09,2e-05,2]
[408418121,1773593222485,-5000.0,0.00010215,120]
[408418151,1773593375272,647.04590486,1.937e-05,2]
[408418153,1773593425461,5000.0,2.001e-05,2]
[408418171,1773593431492,-300.0,2.099e-05,2]
[408418173,1773593431503,-399.09,2.1e-05,2]
[408418175,1773593431512,-14.646,2.1e-05,2]
[408418178,1773593431525,-384.444,2.1e-05,2]
[408418180,1773593431535,-208.79821473,2.1e-05,2]
[408418183,1773593431563,-190.29178527,2.1e-05,2]
[408418186,1773593431573,-399.09,2.1e-05,2]
[408418187,1773593431582,-399.09,2.1e-05,2]
[408418189,1773593431593,-399.09,2.1e-05,2]
[408418191,1773593431602,-399.09,2.1e-05,2]
[408418193,1773593431612,-399.09,2.1e-05,2]
[408418195,1773593431623,-399.09,2.1e-05,2]
[408418197,1773593431633,-399.09,2.1e-05,2]
[408418200,1773593431643,-379.45966148,2.1e-05,2]
[408418317,1773593437613,-19.63033852,2.1e-05,2]
[408418318,1773593437623,-399.09,2.1e-05,2]
[408418319,1773593437633,-399.09,2.1e-05,2]
[408418320,1773593437643,-399.09,2.1e-05,2]
[408418321,1773593437654,-399.09,2.1e-05,2]
[408418322,1773593437665,-399.09,2.1e-05,2]
[408418323,1773593437675,-399.09,2.1e-05,2]
[408418324,1773593437685,-399.09,2.1e-05,2]
[408418325,1773593437694,-110.6067361,2.1e-05,2]
[408418326,1773593437705,-288.4832639,2.1e-05,2]
[408418327,1773593437714,-399.09,2.1e-05,2]
[408418328,1773593437724,-399.09,2.1e-05,2]
[408418329,1773593437733,-399.09,2.1e-05,2]
[408418330,1773593437743,-399.09,2.1e-05,2]
[408418331,1773593437752,-399.09,2.1e-05,2]
[408418332,1773593437762,-463.97761665,2.1e-05,2]
[408418333,1773593437771,-500.0,2.1e-05,2]
[408418334,1773593437781,-500.0,2.1e-05,2]
[408418335,1773593437791,-500.0,2.1e-05,2]
[408418336,1773593437800,-500.0,2.1e-05,2]
[408418337,1773593437809,-600.0,2.141e-05,2]
[408418338,1773593437819,-300.0,2.141e-05,2]
[408418339,1773593437829,-420.0,2.309e-05,2]
[408418340,1773593437839,-720.0,2.355e-05,2]
[408418341,1773593437848,-287.0,2.54e-05,2]
[408418342,1773593437858,-864.0,2.591e-05,2]
[408418343,1773593437867,-1000.0,2.648e-05,2]
[408418344,1773593437877,-1000.0,2.648e-05,2]
[408418345,1773593437886,-163.950122,2.65e-05,2]
[408418346,1773593437894,-163.950122,2.761e-05,2]
[408418347,1773593437904,-400.97868007,2.787e-05,2]
[408418348,1773593437913,-1000.0,2.85e-05,2]
[408418349,1773593437923,-163.950122,2.873e-05,2]
[408418350,1773593437932,-163.950122,2.984e-05,2]
[408418351,1773593437942,-163.950122,3.096e-05,2]
[408418352,1773593437951,-1000.0,3.135e-05,2]
[408418353,1773593437960,-244.0,3.135e-05,2]
[408418354,1773593437970,-1500.0,3.196e-05,2]
[408418355,1773593437979,-1500.0,3.196e-05,2]
[408418356,1773593437989,-163.950122,3.207e-05,2]
[408418357,1773593437998,-1000.0,3.448e-05,2]
[408418358,1773593438011,-492.0,3.448e-05,2]
[408418359,1773593438020,-1354.3503768,3.744e-05,2]
[408418360,1773593438032,-645.6496232,3.744e-05,2]
[408418361,1773593438042,-67.9973768,3.744e-05,2]
[408418716,1773593443182,-287.5135445,3.744e-05,2]
[408418718,1773593443193,-1644.4890787,3.744e-05,2]
[408418720,1773593443203,-1000.0,3.793e-05,2]
[408418722,1773593443213,-791.0,3.793e-05,2]
[408418724,1773593443222,-1000.0,4.172e-05,2]
[408418726,1773593443232,-1000.0,4.172e-05,2]
[408418728,1773593443241,-2500.0,4.292e-05,2]
[408418730,1773593443250,-1000.0,4.589e-05,2]
[408418732,1773593443259,-1000.0,4.589e-05,2]
[408418734,1773593443269,-579.0,4.589e-05,2]
[408418736,1773593443278,-2113.17994291,4.84e-05,2]
[408418739,1773593443292,-886.82005709,4.84e-05,2]
[408418741,1773593443300,-1000.0,5.048e-05,2]
[408418743,1773593443310,-1000.0,5.048e-05,2]
[408418745,1773593443319,-1000.0,5.048e-05,2]
[408418747,1773593443329,-1001.9022056,5.388e-05,2]
[408418749,1773593443338,-962.0,5.553e-05,2]
[408418751,1773593443347,-223.12314765,6.028e-05,2]
[408418753,1773593443356,-2150.738,6.782e-05,2]
[408418754,1773593443365,-151.0,6.838e-05,2]
[408418756,1773593443375,-151.65965464,6.838e-05,2]
[408418759,1773593443390,-293.54311136,6.838e-05,2]
[408418761,1773593443399,-162.380719,6.838e-05,2]
[408418763,1773593443409,-500.0,6.838e-05,2]
[408418765,1773593443418,-500.0,6.838e-05,2]
[408418767,1773593443428,-500.0,6.838e-05,2]
[408418769,1773593443437,-500.0,6.838e-05,2]
[408418771,1773593443446,-27.18701027,6.838e-05,2]
[408418774,1773593443465,-472.81298973,6.838e-05,2]
[408418776,1773593443475,-500.0,6.838e-05,2]
[408418778,1773593443485,-500.0,6.838e-05,2]
[408418780,1773593443494,-500.0,6.838e-05,2]
[408418782,1773593443503,-500.0,6.838e-05,2]
[408418784,1773593443512,-500.0,6.838e-05,2]
[408418786,1773593443521,-500.0,6.838e-05,2]
[408418788,1773593443531,-156.587,6.838e-05,2]
[408418789,1773593443540,-500.0,6.838e-05,2]
[408418791,1773593443550,-500.0,6.838e-05,2]
[408418793,1773593443559,-500.0,6.838e-05,2]
[408418795,1773593443568,-500.0,6.838e-05,2]
[408418797,1773593443577,-500.0,6.838e-05,2]
[408418799,1773593443587,-472.59973609,6.838e-05,2]
[408419011,1773593445757,-27.40026391,6.838e-05,2]
[408419013,1773593445767,-500.0,6.838e-05,2]
[408419014,1773593445776,-517.7901735,6.838e-05,2]
[408419015,1773593445785,-4869.63522163,6.999e-05,2]
[408419021,1773593445917,-1767.81555883,6.999e-05,2]
[408419023,1773593445926,-1080.18444117,7.099e-05,2]
[408419234,1773593683615,160.0,0.0001,120]
[408419235,1773593683963,160.0,0.0001,120]
[408419236,1773593713605,160.0,0.0001,120]
[408419237,1773593713929,160.0,0.0001,120]
[408419238,1773593714259,160.0,0.0001,120]
[408419239,1773593714600,160.0,0.0001,120]
[408419240,1773593714933,160.0,0.0001,120]
[408419241,1773593715387,160.0,0.0001,120]
[408419242,1773593716511,160.0,0.0001,120]
[408419243,1773593743880,184.09,0.0001,120]
[408419244,1773593744206,184.09,0.0001,120]
[408419245,1773593744559,184.09,0.0001,120]
[408419246,1773593744905,184.09,0.0001,120]
[408419247,1773593745212,184.09,0.0001,120]
[408419248,1773593745538,184.09,0.0001,120]
[408419249,1773593745833,184.09,0.0001,120]
[408419250,1773593748758,184.09,0.0001,120]
[408419251,1773593749067,184.09,0.0001,120]
[408419252,1773593749386,184.09,0.0001,120]
[408419253,1773593773623,160.0,0.0001,120]
[408419254,1773594002465,295.46,2e-05,2]
[408419256,1773594003382,295.46,2e-05,2]
[408419257,1773594003720,295.46,2e-05,2]
[408419258,1773594004000,295.46,2e-05,2]
[408419259,1773594004279,295.46,2e-05,2]
[408419260,1773594004575,295.46,2e-05,2]
[408419261,1773594004949,295.46,2e-05,2]
[408419262,1773594005265,295.46,2e-05,2]
[408419263,1773594005549,295.46,2e-05,2]
[408419264,1773594005880,295.46,2e-05,2]